{"text_format":"1","workbook":"xlsx","n_sheets":2,"sheets":["Valuuta konverteerimised","Vahetuskursid"],"not_rendered":{"charts":0,"images":1,"macros":1,"external_links":0,"defined_names":7,"comments":0,"pivot_tables":0},"unopened":[],"bounds":{"document_bytes":16777216,"sheet_cells":100000,"rows_first":2000,"rows_last":500,"rows_between":2000,"halvings":0,"cell_chars":16384,"cell_head_chars":4096},"cells_cut":0,"cells_raw":0,"read":"whole","date_system":"1900"}

{"sheet":"Valuuta konverteerimised","index":0,"n_rows":10,"n_cols":5,"rows_kept":10,"cut":false,"hidden":false,"merged":[]}
[]
[]
[]
[]
[null,null,null,41,6000]
[]
[]
[]
[]
[null,null,null,27,{"$f":"IFERROR(IF(OR(FromCurrency=0,ToCurrency=0),\"\",FromAmount/OFFSET(Currencies,FromCurrency-1,3,1,1)*OFFSET(Currencies,ToCurrency-1,3,1,1)),\"\")","v":35850}]

{"sheet":"Vahetuskursid","index":1,"n_rows":59,"n_cols":5,"rows_kept":59,"cut":false,"hidden":false,"merged":[]}
["Vahetuskursid"]
["Selle lehe andmed on MSN Money veebipäringust. Neid värskendatakse lehel Valuuta konverteerimised nupu Vahetuskursid klõpsamisel."]
[null,null,"Currency Rates Provided by MSN Money"]
[null,null,"Click here to visit MSN Money"]
[]
[null,"Loendi nimi","Nimi","Ühik: US$","US$ kohta"]
[null,{"$f":"IF(ISERROR(FIND(\" USA dollariks\",C7)),C7,LEFT(C7,FIND(\" USA dollariks\",C7)-1))","v":"Argentina peeso"},"Argentina peeso USA dollariks",0.22497,4.4450000000000003]
[null,{"$f":"IF(ISERROR(FIND(\" USA dollariks\",C8)),C8,LEFT(C8,FIND(\" USA dollariks\",C8)-1))","v":"Austraalia dollar"},"Austraalia dollar USA dollariks",0.98570999999999998,1.0149999999999999]
[null,"Bahreini dinaar","Bahreini dinaar USA dollariks",2.6497000000000002,0.377]
[null,"Boliivia boliviano","Boliivia boliviano USA dollariks",0.14346999999999999,6.97]
[null,"Brasiilia riaal","Brasiilia riaal USA dollariks",0.50178,1.9930000000000001]
[null,"Inglise nael","Inglise nael USA dollariks",1.5699000000000001,0.63700000000000001]
[null,"Kanada dollar","Kanada dollar USA dollariks",0.97521000000000002,1.0249999999999999]
[null,"Tšiili peeso","Tšiili peeso USA dollariks",1.9599999999999999E-3,511.3]
[null,"Hiina jüaan","Hiina jüaan USA dollariks",0.15748000000000001,6.35]
[null,"Kolumbia peeso","Kolumbia peeso USA dollariks",5.4000000000000001E-4,1850]
[null,"Tšehhi kroon","Tšehhi kroon USA dollariks",4.9610000000000001E-2,20.155000000000001]
[null,"Taani kroon","Taani kroon USA dollariks",0.16947999999999999,5.9]
[null,"Euro","Euro USA dollariks",1.2591000000000001,0.79400000000000004]
[null,"Egiptuse nael*","Egiptuse nael* USA dollariks",0.16550999999999999,6.0419999999999998]
[null,"Hong Kongi dollar","Hong Kongi dollar USA dollariks",0.12883,7.7619999999999996]
[null,"Ungari forint","Ungari forint USA dollariks",4.1999999999999997E-3,238.1]
[null,"India ruupia","India ruupia USA dollariks",1.813E-2,55.15]
[null,"Indoneesia ruupia","Indoneesia ruupia USA dollariks",1.1E-4,9478]
[null,"Jaapani jeen","Jaapani jeen USA dollariks",1.259E-2,79.400000000000006]
[null,"Jordaania dinaar","Jordaania dinaar USA dollariks",1.4094,0.71]
[null,"Keenia šilling","Keenia šilling USA dollariks",1.1730000000000001E-2,85.25]
[null,"Lõuna-Korea Won","Lõuna-Korea Won USA dollariks",8.4999999999999995E-4,1175]
[null,"Kuveidi dinaar","Kuveidi dinaar USA dollariks",3.5657000000000001,0.28000000000000003]
[null,"Maroko dirhem","Maroko dirhem USA dollariks",0.11327,8.8279999999999994]
[null,"Malaisia ringgit","Malaisia ringgit USA dollariks",0.31785999999999998,3.1459999999999999]
[null,"Mehhiko peeso","Mehhiko peeso USA dollariks",7.1669999999999998E-2,13.952999999999999]
[null,"Norra kroon","Norra kroon USA dollariks",0.16736000000000001,5.9749999999999996]
[null,"Omaani riaal","Omaani riaal USA dollariks",2.5981000000000001,0.38500000000000001]
[null,"Peruu uus sol","Peruu uus sol USA dollariks",0.36954999999999999,2.706]
[null,"Filipiini peeso","Filipiini peeso USA dollariks",2.2919999999999999E-2,43.64]
[null,"Pakistani ruupia","Pakistani ruupia USA dollariks",1.0829999999999999E-2,92.3]
[null,"Saudi riaal","Saudi riaal USA dollariks",0.26661000000000001,3.7509999999999999]
[null,"Singapuri dollar","Singapuri dollar USA dollariks",0.78417000000000003,1.2749999999999999]
[null,"Lõuna-Aafrika rand","Lõuna-Aafrika rand USA dollariks",0.12001000000000001,8.3330000000000002]
[null,"Rootsi kroon","Rootsi kroon USA dollariks",0.14029,7.1280000000000001]
[null,"Šveitsi frank","Šveitsi frank USA dollariks",1.0479000000000001,0.95399999999999996]
[null,"Taiwani dollar","Taiwani dollar USA dollariks",3.3799999999999997E-2,29.587]
[null,"Tai baat","Tai baat USA dollariks",3.1579999999999997E-2,31.67]
[null,"Tuneesia dinaar","Tuneesia dinaar USA dollariks",0.62378999999999996,1.603]
[null,"Emiraatide dirhem","Emiraatide dirhem USA dollariks",0.27221000000000001,3.6739999999999999]
[null,"USA dollar","USA dollar",1,1]
[null,"Venezuela bolivar","Venezuela bolivar USA dollariks",0.23282,4.2949999999999999]
[]
[]
[]
[null,null,"MSN Money",null,"Microsoft Office Update"]
[null,null,"Tutvuge investori tööriistade, veergude ja palju muuga!",null,"Microsoft Office'i uuendused"]
[null,null,"Privaatsus"]
[null,null,"Juriidiline teave"]
[null,null,"Reklaamimine"]
[null,null,"MSN Worldwide"]
[null,null,"Meie reklaamide kohta"]
[null,null,"© 2012 Microsoft "]